[Event "RUS-ch Blitz Women 2018"]
[Site "Sochi"]
[Date "2018.10.07"]
[Round "5"]
[White "Bivol, Alina"]
[Black "Vinokur, Yuliya"]
[Result "0-1"]
[ECO "A04"]
[WhiteElo "2403"]
[BlackElo "2170"]
[Annotator "ChessBase"]
[PlyCount "86"]
[EventDate "2018.10.07"]
[EventType "swiss"]
[EventCountry "RUS"]
[SourceTitle "playchess.com"]
[Source "ChessBase"]
[SourceQuality "1"]
[TimeControl "180+2"]

1. Nf3 {[%emt 0:00:00]} g6 {[%emt 0:00:00]} 2. g3 {[%emt 0:00:00]} Bg7 {[%emt 0:00:02]} 3. d4 {[%emt 0:00:01]} c5 {[%emt 0:00:01]} 4. dxc5 {[%emt 0:00:08]} Na6 {[%emt 0:00:11]} 5. Bg2 {[%emt 0:00:03]} Nxc5 {[%emt 0:00:04]} 6. O-O {[%emt 0:00:03]} Nf6 {[%emt 0:00:01]} 7. c4 {[%emt 0:00:07]} O-O {[%emt 0:00:03]} 8. Nc3 {[%emt 0:00:00]} d6 {[%emt 0:00:15]} 9. Nd4 {[%emt 0:00:10]} Rb8 {[%emt 0:00:07]} 10. b3 {[%emt 0:00:11]} a6 {[%emt 0:00:48]} 11. Bb2 {[%emt 0:00:02]} Qc7 {[%emt 0:00:01]} 12. Rc1 {[%emt 0:00:06]} Bd7 {[%emt 0:00:03]} 13. b4 {[%emt 0:00:15]} Ne6 {[%emt 0:00:09]} 14. Nd5 {[%emt 0:00:02]} Qd8 {[%emt 0:00:01]} 15. Nxe6 {[%emt 0:00:07]} fxe6 {[%emt 0:00:12]} 16. Nc3 {[%emt 0:00:23]} Bc6 {[%emt 0:00:05]} 17. Bh3 {[%emt 0:00:31]} e5 {[%emt 0:00:21]} 18. b5 {[%emt 0:00:14]} axb5 {[%emt 0:00:08]} 19. cxb5 {[%emt 0:00:03]} Bd7 {[%emt 0:00:04]} 20. Bg2 {[%emt 0:00:01]} Be6 {[%emt 0:00:09]} 21. Nd5 {[%emt 0:00:20]} Kh8 {[%emt 0:00:02]} 22. Nb4 {[%emt 0:00:25]} Qa5 {[%emt 0:00:03]} 23. a3 {[%emt 0:00:17]} Qa7 {[%emt 0:00:11]} 24. e3 {[%emt 0:00:03]} Rbc8 {[%emt 0:00:04]} 25. Qe2 {[%emt 0:00:02]} Nd7 {[%emt 0:00:12]} 26. h3 {[%emt 0:00:05]} Nc5 {[%emt 0:00:02]} 27. Nd5 {[%emt 0:00:04]} Rf7 {[%emt 0:00:05]} 28. Rc2 {[%emt 0:00:01]} Rcf8 {[%emt 0:00:01]} 29. e4 {[%emt 0:00:03]} Bh6 {[%emt 0:00:08]} 30. Ne3 {[%emt 0:00:07]} Qa5 {[%emt 0:00:04]} 31. Ng4 {[%emt 0:00:03]} Bg7 {[%emt 0:00:01]} 32. Bc1 {[%emt 0:00:03]} Bb3 {[%emt 0:00:03]} 33. Rd2 {[%emt 0:00:02]} Qa4 {[%emt 0:00:01]} 34. Ne3 {[%emt 0:00:02]} Nxe4 {[%emt 0:00:03]} 35. Rb2 {[%emt 0:00:02]} Nc5 {[%emt 0:00:05]} 36. Bd5 {[%emt 0:00:02]} Bxd5 {[%emt 0:00:02]} 37. Nxd5 {[%emt 0:00:01]} e4 {[%emt 0:00:05]} 38. Rb4 {[%emt 0:00:01]} Qa5 {[%emt 0:00:03]} 39. b6 {[%emt 0:00:01]} Nd3 {[%emt 0:00:02]} 40. Qxe4 {[%emt 0:00:06]} Nxf2 {[%emt 0:00:03]} 41. Qh4 {[%emt 0:00:02]} Qxd5 {[%emt 0:00:02]} 42. Bf4 {[%emt 0:00:02]} Ne4 {[%emt 0:00:02]} 43. Rb2 {[%emt 0:00:05]} Qd4+ {[%emt 0:00:02]} 0-1

[Event "RUS-ch Blitz Women 2018"]
[Site "Sochi"]
[Date "2018.10.07"]
[Round "5"]
[White "Vasilevich, Tatjana"]
[Black "Ambartsumova, Karina"]
[Result "1/2-1/2"]
[ECO "A55"]
[WhiteElo "2360"]
[BlackElo "2379"]
[Annotator "ChessBase"]
[PlyCount "207"]
[EventDate "2018.10.07"]
[EventType "swiss"]
[EventCountry "RUS"]
[SourceTitle "playchess.com"]
[Source "ChessBase"]
[SourceQuality "1"]
[TimeControl "180+2"]

1. d4 {[%emt 0:00:00]} Nf6 {[%emt 0:00:00]} 2. c4 {[%emt 0:00:00]} d6 {[%emt 0:00:04]} 3. Nc3 {[%emt 0:00:02]} e5 {[%emt 0:00:00]} 4. Nf3 {[%emt 0:00:13]} Nbd7 {[%emt 0:00:04]} 5. e4 {[%emt 0:00:03]} Be7 {[%emt 0:00:01]} 6. Be2 {[%emt 0:00:02]} O-O {[%emt 0:00:02]} 7. O-O {[%emt 0:00:01]} c6 {[%emt 0:00:02]} 8. Re1 {[%emt 0:00:03]} Qe8 {[%emt 0:00:01]} 9. Bf1 {[%emt 0:00:03]} Bd8 {[%emt 0:00:02]} 10. b4 {[%emt 0:00:32]} Qe7 {[%emt 0:00:19]} 11. Bb2 {[%emt 0:00:10]} Bc7 {[%emt 0:00:06]} 12. Qd2 {[%emt 0:00:05]} Re8 {[%emt 0:00:32]} 13. a3 {[%emt 0:00:02]} Nf8 {[%emt 0:00:12]} 14. d5 {[%emt 0:00:10]} Bg4 {[%emt 0:00:15]} 15. Be2 {[%emt 0:00:05]} Bxf3 {[%emt 0:00:08]} 16. Bxf3 {[%emt 0:00:01]} Ng6 {[%emt 0:00:06]} 17. g3 {[%emt 0:00:01]} a5 {[%emt 0:00:06]} 18. dxc6 {[%emt 0:00:05]} bxc6 {[%emt 0:00:07]} 19. b5 {[%emt 0:00:02]} cxb5 {[%emt 0:00:13]} 20. Nxb5 {[%emt 0:00:15]} Nf8 {[%emt 0:00:00]} 21. Red1 {[%emt 0:00:06]} Red8 {[%emt 0:00:01]} 22. a4 {[%emt 0:00:06]} Ne6 {[%emt 0:00:04]} 23. Ba3 {[%emt 0:00:01]} Nc5 {[%emt 0:00:01]} 24. Qc2 {[%emt 0:00:06]} Rab8 {[%emt 0:00:05]} 25. Rd2 {[%emt 0:00:08]} Ne8 {[%emt 0:00:29]} 26. Rad1 {[%emt 0:00:04]} Bb6 {[%emt 0:00:07]} 27. Kg2 {[%emt 0:00:04]} Rd7 {[%emt 0:00:02]} 28. Nc3 {[%emt 0:00:06]} Nf6 {[%emt 0:00:04]} 29. Nb5 {[%emt 0:00:04]} Ne8 {[%emt 0:00:01]} 30. Bg4 {[%emt 0:00:02]} Rdd8 {[%emt 0:00:00]} 31. Bf3 {[%emt 0:00:02]} g6 {[%emt 0:00:02]} 32. h4 {[%emt 0:00:04]} h5 {[%emt 0:00:01]} 33. Rb1 {[%emt 0:00:16]} Kg7 {[%emt 0:00:09]} 34. Qd1 {[%emt 0:00:02]} Bc7 {[%emt 0:00:07]} 35. Bxc5 {[%emt 0:00:08]} dxc5 {[%emt 0:00:01]} 36. Rbb2 {[%emt 0:00:05]} Nf6 {[%emt 0:00:16]} 37. Rxd8 {[%emt 0:00:06]} Rxd8 {[%emt 0:00:01]} 38. Rd2 {[%emt 0:00:01]} Bb6 {[%emt 0:00:08]} 39. Rd6 {[%emt 0:00:06]} Rxd6 {[%emt 0:00:03]} 40. Qxd6 {[%emt 0:00:01]} Qxd6 {[%emt 0:00:02]} 41. Nxd6 {[%emt 0:00:01]} Kf8 {[%emt 0:00:03]} 42. Kf1 {[%emt 0:00:03]} Bc7 {[%emt 0:00:02]} 43. Nb5 {[%emt 0:00:05]} Bb6 {[%emt 0:00:02]} 44. Ke2 {[%emt 0:00:01]} Ke7 {[%emt 0:00:01]} 45. Kd3 {[%emt 0:00:02]} Nd7 {[%emt 0:00:05]} 46. Nc3 {[%emt 0:00:02]} Nf6 {[%emt 0:00:01]} 47. Bg2 {[%emt 0:00:11]} Kd6 {[%emt 0:00:02]} 48. f3 {[%emt 0:00:01]} Ke7 {[%emt 0:00:01]} 49. Bh3 {[%emt 0:00:02]} Bc7 {[%emt 0:00:01]} 50. Nd5+ {[%emt 0:00:03]} Nxd5 {[%emt 0:00:02]} 51. cxd5 {[%emt 0:00:00]} Kd6 {[%emt 0:00:03]} 52. Kc4 {[%emt 0:00:02]} Bd8 {[%emt 0:00:01]} 53. Kb5 {[%emt 0:00:02]} Bc7 {[%emt 0:00:07]} 54. Bf1 {[%emt 0:00:03]} Bd8 {[%emt 0:00:01]} 55. Bc4 {[%emt 0:00:01]} g5 {[%emt 0:00:04]} 56. hxg5 {[%emt 0:00:04]} Bc7 {[%emt 0:00:06]} 57. Ka6 {[%emt 0:00:06]} Bd8 {[%emt 0:00:00]} 58. Kb7 {[%emt 0:00:01]} Bxg5 {[%emt 0:00:02]} 59. Kc8 {[%emt 0:00:01]} h4 {[%emt 0:00:02]} 60. gxh4 {[%emt 0:00:02]} Bxh4 {[%emt 0:00:00]} 61. Kb7 {[%emt 0:00:04]} Be1 {[%emt 0:00:03]} 62. Kc8 {[%emt 0:00:05]} Bh4 {[%emt 0:00:02]} 63. Bb5 {[%emt 0:00:04]} Bg5 {[%emt 0:00:02]} 64. Bc4 {[%emt 0:00:05]} Bh4 {[%emt 0:00:02]} 65. Kb7 {[%emt 0:00:01]} Be1 {[%emt 0:00:02]} 66. Kb6 {[%emt 0:00:03]} Bd2 {[%emt 0:00:01]} 67. Kb5 {[%emt 0:00:02]} Be1 {[%emt 0:00:01]} 68. Bf1 {[%emt 0:00:02]} Bd2 {[%emt 0:00:01]} 69. Bh3 {[%emt 0:00:01]} Be1 {[%emt 0:00:01]} 70. Bg4 {[%emt 0:00:01]} Bd2 {[%emt 0:00:01]} 71. Bh5 {[%emt 0:00:01]} f6 {[%emt 0:00:01]} 72. Bg4 {[%emt 0:00:02]} Be1 {[%emt 0:00:00]} 73. Bh3 {[%emt 0:00:01]} Bd2 {[%emt 0:00:01]} 74. Bf1 {[%emt 0:00:01]} Be1 {[%emt 0:00:01]} 75. Bc4 {[%emt 0:00:01]} Bd2 {[%emt 0:00:01]} 76. Ka6 {[%emt 0:00:01]} Be1 {[%emt 0:00:01]} 77. Kb7 {[%emt 0:00:01]} Bd2 {[%emt 0:00:01]} 78. Kc8 {[%emt 0:00:01]} Be1 {[%emt 0:00:01]} 79. Kd8 {[%emt 0:00:01]} Bd2 {[%emt 0:00:02]} 80. Ke8 {[%emt 0:00:01]} Be1 {[%emt 0:00:02]} 81. Kf7 {[%emt 0:00:01]} Bh4 {[%emt 0:00:02]} 82. Kg6 {[%emt 0:00:01]} Ke7 {[%emt 0:00:06]} 83. Kf5 {[%emt 0:00:04]} Bg5 {[%emt 0:00:07]} 84. Bb5 {[%emt 0:00:02]} Kd6 {[%emt 0:00:01]} 85. Bc4 Ke7 86. Kg4 {[%emt 0:00:03]} Kd6 {[%emt 0:00:01]} 87. Kh3 {[%emt 0:00:07]} Ke7 {[%emt 0:00:01]} 88. Kg2 {[%emt 0:00:01]} Kd6 {[%emt 0:00:00]} 89. Kf2 Ke7 90. Ke2 {[%emt 0:00:01]} Kd6 {[%emt 0:00:01]} 91. Kd3 Kc7 92. Kc3 {[%emt 0:00:05]} Bh4 {[%emt 0:00:02]} 93. Be2 {[%emt 0:00:04]} Kd6 {[%emt 0:00:03]} 94. Kc4 {[%emt 0:00:01]} Be1 {[%emt 0:00:03]} 95. Kb5 {[%emt 0:00:02]} Bd2 {[%emt 0:00:01]} 96. Kb6 {[%emt 0:00:05]} Be1 {[%emt 0:00:01]} 97. Kb7 {[%emt 0:00:01]} Bd2 {[%emt 0:00:02]} 98. Bc4 {[%emt 0:00:01]} Be1 {[%emt 0:00:01]} 99. Kc8 {[%emt 0:00:01]} Bd2 {[%emt 0:00:02]} 100. Kd8 {[%emt 0:00:00]} Bg5 {[%emt 0:00:01]} 101. Ke8 {[%emt 0:00:01]} Bh4 {[%emt 0:00:01]} 102. Kf7 {[%emt 0:00:01]} Bg5 {[%emt 0:00:02]} 103. Kg6 {[%emt 0:00:02]} Ke7 {[%emt 0:00:03]} 104. Kf5 {[%emt 0:00:05]} 1/2-1/2

[Event "RUS-ch Blitz Women 2018"]
[Site "Sochi"]
[Date "2018.10.07"]
[Round "5"]
[White "Charochkina, Daria"]
[Black "Nebolsina, Vera"]
[Result "1-0"]
[ECO "D85"]
[WhiteElo "2344"]
[BlackElo "2220"]
[Annotator "ChessBase"]
[PlyCount "95"]
[EventDate "2018.10.07"]
[EventType "swiss"]
[EventCountry "RUS"]
[SourceTitle "playchess.com"]
[Source "ChessBase"]
[SourceQuality "1"]
[TimeControl "180+2"]

1. d4 {[%emt 0:00:00]} Nf6 {[%emt 0:00:00]} 2. c4 {[%emt 0:00:00]} g6 {[%emt 0:00:01]} 3. Nc3 {[%emt 0:00:01]} d5 {[%emt 0:00:02]} 4. cxd5 {[%emt 0:00:01]} Nxd5 {[%emt 0:00:01]} 5. g3 {[%emt 0:00:01]} Bg7 {[%emt 0:00:12]} 6. Bg2 {[%emt 0:00:01]} Nb6 {[%emt 0:00:05]} 7. Nf3 {[%emt 0:00:05]} O-O {[%emt 0:00:13]} 8. O-O {[%emt 0:00:02]} Nc6 {[%emt 0:00:03]} 9. e3 {[%emt 0:00:01]} Re8 {[%emt 0:00:02]} 10. a3 {[%emt 0:00:01]} e5 {[%emt 0:00:07]} 11. d5 {[%emt 0:00:01]} Na5 {[%emt 0:00:08]} 12. Qc2 {[%emt 0:00:01]} Nac4 {[%emt 0:00:08]} 13. b3 {[%emt 0:00:11]} Nd6 {[%emt 0:00:01]} 14. e4 {[%emt 0:00:12]} h6 {[%emt 0:00:15]} 15. Nh4 {[%emt 0:00:17]} Bd7 {[%emt 0:00:15]} 16. Be3 {[%emt 0:00:02]} Rc8 {[%emt 0:00:10]} 17. a4 {[%emt 0:00:04]} c6 {[%emt 0:00:12]} 18. a5 {[%emt 0:00:03]} Na8 {[%emt 0:00:12]} 19. Qd2 {[%emt 0:00:01]} g5 {[%emt 0:00:12]} 20. Nf3 {[%emt 0:00:08]} cxd5 {[%emt 0:00:02]} 21. exd5 {[%emt 0:00:11]} Nc7 {[%emt 0:00:14]} 22. Bxa7 {[%emt 0:00:06]} Ncb5 {[%emt 0:00:06]} 23. Bb6 {[%emt 0:00:08]} Qf6 {[%emt 0:00:09]} 24. Nxb5 {[%emt 0:00:05]} Nxb5 {[%emt 0:00:08]} 25. Rac1 {[%emt 0:01:11]} e4 {[%emt 0:00:03]} 26. Rxc8 {[%emt 0:00:01]} Rxc8 {[%emt 0:00:02]} 27. Ne1 {[%emt 0:00:01]} Qg6 {[%emt 0:00:06]} 28. Qb4 {[%emt 0:00:07]} f5 {[%emt 0:00:07]} 29. Qe7 {[%emt 0:00:05]} Qe8 {[%emt 0:00:06]} 30. Qxe8+ {[%emt 0:00:17]} Rxe8 {[%emt 0:00:01]} 31. f4 {[%emt 0:00:03]} g4 {[%emt 0:00:10]} 32. Nc2 {[%emt 0:00:02]} Rc8 {[%emt 0:00:02]} 33. Ne3 {[%emt 0:00:03]} Rc3 {[%emt 0:00:01]} 34. h3 {[%emt 0:00:07]} h5 {[%emt 0:00:03]} 35. hxg4 {[%emt 0:00:01]} hxg4 {[%emt 0:00:01]} 36. Nc4 {[%emt 0:00:04]} Rxb3 {[%emt 0:00:05]} 37. Ne5 {[%emt 0:00:01]} Be8 {[%emt 0:00:09]} 38. Rc1 {[%emt 0:00:01]} Rc3 {[%emt 0:00:02]} 39. Rxc3 {[%emt 0:00:03]} Nxc3 {[%emt 0:00:01]} 40. d6 {[%emt 0:00:07]} Bxe5 {[%emt 0:00:01]} 41. fxe5 {[%emt 0:00:01]} Bd7 {[%emt 0:00:01]} 42. Bf1 {[%emt 0:00:02]} Be6 {[%emt 0:00:09]} 43. Bd4 {[%emt 0:00:03]} Nd5 {[%emt 0:00:07]} 44. Bb5 {[%emt 0:00:05]} Kf7 {[%emt 0:00:01]} 45. Kf2 {[%emt 0:00:03]} Nb4 {[%emt 0:00:02]} 46. Bb6 {[%emt 0:00:04]} Nc6 {[%emt 0:00:01]} 47. a6 {[%emt 0:00:06]} Bd7 {[%emt 0:00:09]} 48. Bxc6 {[%emt 0:00:04]} 1-0

[Event "RUS-ch Blitz Women 2018"]
[Site "Sochi"]
[Date "2018.10.07"]
[Round "5"]
[White "Dordzhieva, Dinara"]
[Black "Goltseva, Ekaterina"]
[Result "1-0"]
[ECO "A06"]
[WhiteElo "2340"]
[BlackElo "2169"]
[Annotator "ChessBase"]
[PlyCount "67"]
[EventDate "2018.10.07"]
[EventType "swiss"]
[EventCountry "RUS"]
[SourceTitle "playchess.com"]
[Source "ChessBase"]
[SourceQuality "1"]
[TimeControl "180+2"]

1. Nf3 {[%emt 0:00:00]} d5 {[%emt 0:00:00]} 2. g3 {[%emt 0:00:00]} Nf6 {[%emt 0:00:01]} 3. Bg2 {[%emt 0:00:01]} b5 {[%emt 0:00:01]} 4. b3 {[%emt 0:00:03]} Bb7 {[%emt 0:00:02]} 5. O-O {[%emt 0:00:03]} e6 {[%emt 0:00:02]} 6. c4 {[%emt 0:00:07]} bxc4 {[%emt 0:00:07]} 7. bxc4 {[%emt 0:00:00]} dxc4 {[%emt 0:00:01]} 8. Na3 {[%emt 0:00:05]} Bd5 {[%emt 0:00:39]} 9. Qc2 {[%emt 0:00:31]} Be7 {[%emt 0:00:15]} 10. Nxc4 {[%emt 0:00:02]} O-O {[%emt 0:00:04]} 11. d3 {[%emt 0:00:01]} c5 {[%emt 0:00:06]} 12. Bb2 {[%emt 0:00:08]} Nc6 {[%emt 0:00:07]} 13. a3 {[%emt 0:00:03]} Rb8 {[%emt 0:00:09]} 14. Rab1 {[%emt 0:00:08]} Na5 {[%emt 0:00:16]} 15. Ne3 {[%emt 0:00:09]} Bb3 16. Qc3 Ba2 {[%emt 0:00:45]} 17. Ra1 {[%emt 0:00:11]} Bd5 {[%emt 0:00:02]} 18. Nxd5 {[%emt 0:00:04]} exd5 {[%emt 0:00:01]} 19. Rab1 {[%emt 0:00:16]} Qb6 {[%emt 0:00:10]} 20. Qc2 {[%emt 0:00:03]} Qe6 {[%emt 0:00:10]} 21. Be5 {[%emt 0:00:11]} Rxb1 {[%emt 0:00:07]} 22. Rxb1 {[%emt 0:00:01]} Nc6 {[%emt 0:00:01]} 23. Bc3 {[%emt 0:00:02]} Rb8 {[%emt 0:00:05]} 24. Rxb8+ {[%emt 0:00:09]} Nxb8 {[%emt 0:00:01]} 25. h3 {[%emt 0:00:01]} Qb6 {[%emt 0:00:03]} 26. Qa4 {[%emt 0:00:03]} Nc6 {[%emt 0:00:05]} 27. Ne5 {[%emt 0:00:06]} Nxe5 28. Bxe5 {[%emt 0:00:01]} h6 {[%emt 0:00:23]} 29. Bxf6 {[%emt 0:00:01]} Bxf6 {[%emt 0:00:02]} 30. Bxd5 {[%emt 0:00:00]} Bd4 {[%emt 0:00:06]} 31. Qe8+ {[%emt 0:00:03]} Kh7 {[%emt 0:00:00]} 32. Qxf7 {[%emt 0:00:02]} Qb1+ {[%emt 0:00:07]} 33. Kg2 {[%emt 0:00:02]} Qb8 {[%emt 0:00:02]} 34. Be4+ {[%emt 0:00:08]} 1-0

[Event "RUS-ch Blitz Women 2018"]
[Site "Sochi"]
[Date "2018.10.07"]
[Round "5"]
[White "Tomilova, Elena"]
[Black "Sirotkina, Nina"]
[Result "1/2-1/2"]
[ECO "A45"]
[WhiteElo "2328"]
[BlackElo "2188"]
[Annotator "ChessBase"]
[PlyCount "90"]
[EventDate "2018.10.07"]
[EventType "swiss"]
[EventCountry "RUS"]
[SourceTitle "playchess.com"]
[Source "ChessBase"]
[SourceQuality "1"]
[TimeControl "180+2"]

1. d4 {[%emt 0:00:00]} Nf6 {[%emt 0:00:00]} 2. Bg5 {[%emt 0:00:00]} d5 {[%emt 0:00:05]} 3. e3 {[%emt 0:00:01]} e6 {[%emt 0:00:05]} 4. Nd2 {[%emt 0:00:04]} Be7 {[%emt 0:00:01]} 5. Bd3 {[%emt 0:00:02]} O-O {[%emt 0:00:07]} 6. f4 {[%emt 0:00:05]} c5 {[%emt 0:00:13]} 7. c3 {[%emt 0:00:02]} b6 {[%emt 0:00:01]} 8. Ngf3 {[%emt 0:00:04]} Ba6 {[%emt 0:00:02]} 9. Bxa6 {[%emt 0:00:06]} Nxa6 {[%emt 0:00:01]} 10. Qe2 {[%emt 0:00:11]} Nc7 {[%emt 0:00:03]} 11. O-O {[%emt 0:00:06]} Nce8 {[%emt 0:00:05]} 12. Ne5 {[%emt 0:00:05]} Rc8 {[%emt 0:00:06]} 13. a4 {[%emt 0:00:09]} Nd6 {[%emt 0:00:02]} 14. Bxf6 {[%emt 0:00:11]} Bxf6 {[%emt 0:00:03]} 15. h3 {[%emt 0:00:27]} Be7 {[%emt 0:00:07]} 16. Kh1 {[%emt 0:00:10]} f6 {[%emt 0:00:03]} 17. Nef3 {[%emt 0:00:02]} Qd7 {[%emt 0:00:02]} 18. e4 {[%emt 0:00:08]} dxe4 {[%emt 0:00:13]} 19. Nxe4 {[%emt 0:00:02]} Nf5 {[%emt 0:00:25]} 20. Rfd1 {[%emt 0:00:14]} Qc6 {[%emt 0:00:05]} 21. Kh2 {[%emt 0:00:05]} Rfd8 {[%emt 0:00:04]} 22. dxc5 {[%emt 0:00:06]} bxc5 {[%emt 0:00:08]} 23. Nf2 {[%emt 0:00:18]} Kf7 {[%emt 0:00:02]} 24. Ng4 {[%emt 0:00:04]} Bd6 {[%emt 0:00:09]} 25. g3 {[%emt 0:00:09]} Re8 {[%emt 0:00:10]} 26. Ne3 {[%emt 0:00:22]} Nxe3 {[%emt 0:00:04]} 27. Qxe3 {[%emt 0:00:00]} Rcd8 {[%emt 0:00:01]} 28. a5 {[%emt 0:00:09]} Bc7 {[%emt 0:00:06]} 29. Re1 {[%emt 0:00:06]} Rd5 {[%emt 0:00:06]} 30. Qe4 {[%emt 0:00:04]} Qd7 {[%emt 0:00:04]} 31. Qxh7 {[%emt 0:00:04]} Rd3 {[%emt 0:00:08]} 32. Qe4 {[%emt 0:00:03]} Rd8 {[%emt 0:00:04]} 33. Re2 {[%emt 0:00:03]} Qd5 {[%emt 0:00:08]} 34. Rae1 {[%emt 0:00:09]} Rxf3 {[%emt 0:00:07]} 35. Qh7 {[%emt 0:00:06]} Re8 {[%emt 0:00:05]} 36. h4 {[%emt 0:00:03]} Rd3 {[%emt 0:00:02]} 37. h5 {[%emt 0:00:02]} Rd2 {[%emt 0:00:01]} 38. Qg6+ {[%emt 0:00:01]} Kf8 {[%emt 0:00:02]} 39. h6 {[%emt 0:00:01]} Rxe2+ 40. Rxe2 {[%emt 0:00:01]} gxh6 {[%emt 0:00:06]} 41. Qxf6+ {[%emt 0:00:01]} Kg8 {[%emt 0:00:02]} 42. Qg6+ {[%emt 0:00:02]} Kf8 {[%emt 0:00:01]} 43. Qf6+ {[%emt 0:00:01]} Kg8 {[%emt 0:00:00]} 44. Qg6+ {[%emt 0:00:02]} Kf8 {[%emt 0:00:01]} 45. Qf6+ {[%emt 0:00:01]} Kg8 1/2-1/2

[Event "RUS-ch Blitz Women 2018"]
[Site "Sochi"]
[Date "2018.10.07"]
[Round "5"]
[White "Maletina, Tatiana"]
[Black "Styazhkina, Anna"]
[Result "1-0"]
[ECO "D11"]
[WhiteElo "2270"]
[BlackElo "2268"]
[Annotator "ChessBase"]
[PlyCount "61"]
[EventDate "2018.10.07"]
[EventType "swiss"]
[EventCountry "RUS"]
[SourceTitle "playchess.com"]
[Source "ChessBase"]
[SourceQuality "1"]
[TimeControl "180+2"]

1. d4 {[%emt 0:00:00]} d5 {[%emt 0:00:00]} 2. c4 {[%emt 0:00:00]} c6 {[%emt 0:00:01]} 3. Nf3 {[%emt 0:00:01]} Nf6 {[%emt 0:00:01]} 4. Qc2 {[%emt 0:00:01]} g6 {[%emt 0:00:03]} 5. Bf4 {[%emt 0:00:02]} Bg7 {[%emt 0:00:02]} 6. e3 {[%emt 0:00:01]} Bf5 {[%emt 0:00:10]} 7. Qb3 {[%emt 0:00:01]} Qb6 {[%emt 0:00:02]} 8. Nc3 {[%emt 0:00:01]} Nbd7 {[%emt 0:00:11]} 9. h3 {[%emt 0:00:17]} O-O {[%emt 0:00:23]} 10. Be2 {[%emt 0:00:01]} Qxb3 {[%emt 0:00:23]} 11. axb3 {[%emt 0:00:02]} a6 {[%emt 0:00:01]} 12. O-O {[%emt 0:00:06]} Rfe8 {[%emt 0:00:09]} 13. Bh2 {[%emt 0:00:18]} h6 {[%emt 0:00:41]} 14. Rac1 {[%emt 0:00:01]} e6 {[%emt 0:00:34]} 15. g4 {[%emt 0:00:02]} Be4 {[%emt 0:00:00]} 16. Nd2 {[%emt 0:00:01]} g5 {[%emt 0:00:08]} 17. Ndxe4 {[%emt 0:00:33]} Nxe4 {[%emt 0:00:02]} 18. Nxe4 {[%emt 0:00:12]} dxe4 {[%emt 0:00:01]} 19. Rfd1 {[%emt 0:00:03]} e5 {[%emt 0:00:08]} 20. d5 {[%emt 0:00:02]} Rad8 {[%emt 0:00:16]} 21. b4 {[%emt 0:00:23]} Bf8 {[%emt 0:00:04]} 22. dxc6 {[%emt 0:00:02]} bxc6 {[%emt 0:00:03]} 23. c5 {[%emt 0:00:01]} Nb8 {[%emt 0:00:10]} 24. Rxd8 {[%emt 0:00:02]} Rxd8 {[%emt 0:00:02]} 25. Bxe5 {[%emt 0:00:01]} Rd2 {[%emt 0:00:07]} 26. Bf1 {[%emt 0:00:02]} Nd7 {[%emt 0:00:02]} 27. Bc3 {[%emt 0:00:01]} Rd5 {[%emt 0:00:03]} 28. Bc4 {[%emt 0:00:01]} Nb8 {[%emt 0:00:05]} 29. Bxd5 {[%emt 0:00:02]} cxd5 {[%emt 0:00:01]} 30. Rd1 {[%emt 0:00:02]} Nc6 {[%emt 0:00:03]} 31. Rxd5 {[%emt 0:00:01]} 1-0

[Event "RUS-ch Blitz Women 2018"]
[Site "Sochi"]
[Date "2018.10.07"]
[Round "5"]
[White "Baraeva, Marina"]
[Black "Voit, Daria"]
[Result "0-1"]
[ECO "E35"]
[WhiteElo "2227"]
[BlackElo "2352"]
[Annotator "ChessBase"]
[PlyCount "64"]
[EventDate "2018.10.07"]
[EventType "swiss"]
[EventCountry "RUS"]
[SourceTitle "playchess.com"]
[Source "ChessBase"]
[SourceQuality "1"]
[TimeControl "180+2"]

1. d4 {[%emt 0:00:00]} Nf6 {[%emt 0:00:00]} 2. c4 {[%emt 0:00:00]} e6 {[%emt 0:00:00]} 3. Nc3 {[%emt 0:00:01]} Bb4 {[%emt 0:00:01]} 4. Qc2 {[%emt 0:00:01]} d5 {[%emt 0:00:02]} 5. cxd5 {[%emt 0:00:04]} exd5 {[%emt 0:00:01]} 6. Bg5 {[%emt 0:00:03]} h6 {[%emt 0:00:01]} 7. Bh4 {[%emt 0:00:01]} g5 {[%emt 0:00:01]} 8. Bg3 {[%emt 0:00:01]} Ne4 {[%emt 0:00:03]} 9. e3 {[%emt 0:00:08]} h5 {[%emt 0:00:02]} 10. f3 {[%emt 0:00:26]} Nxg3 {[%emt 0:00:01]} 11. hxg3 {[%emt 0:00:02]} Qe7 {[%emt 0:00:02]} 12. Qd3 {[%emt 0:00:15]} c6 {[%emt 0:00:44]} 13. O-O-O {[%emt 0:00:35]} Be6 {[%emt 0:00:03]} 14. Nge2 {[%emt 0:00:25]} Nd7 {[%emt 0:00:02]} 15. e4 {[%emt 0:00:01]} dxe4 {[%emt 0:00:18]} 16. fxe4 {[%emt 0:00:02]} O-O-O {[%emt 0:00:03]} 17. Qc2 {[%emt 0:00:09]} Bg4 {[%emt 0:00:22]} 18. Kb1 {[%emt 0:00:16]} Rhe8 {[%emt 0:00:09]} 19. Rd2 {[%emt 0:00:14]} Nb6 {[%emt 0:00:09]} 20. a3 {[%emt 0:00:07]} Bxa3 {[%emt 0:00:34]} 21. bxa3 {[%emt 0:00:23]} Nc4 {[%emt 0:00:01]} 22. Qa2 {[%emt 0:00:04]} Nxd2+ {[%emt 0:00:04]} 23. Qxd2 {[%emt 0:00:01]} Qxa3 {[%emt 0:00:04]} 24. Nc1 {[%emt 0:00:03]} Qb4+ {[%emt 0:00:03]} 25. Kc2 {[%emt 0:00:09]} Rxd4 {[%emt 0:00:10]} 26. Qxg5 {[%emt 0:00:05]} Red8 {[%emt 0:00:03]} 27. Bd3 {[%emt 0:00:02]} a5 {[%emt 0:00:11]} 28. Qe3 {[%emt 0:00:05]} a4 {[%emt 0:00:04]} 29. N1a2 {[%emt 0:00:05]} Qb3+ {[%emt 0:00:02]} 30. Kd2 {[%emt 0:00:04]} Rxd3+ {[%emt 0:00:03]} 31. Qxd3 {[%emt 0:00:02]} Rxd3+ {[%emt 0:00:02]} 32. Kxd3 {[%emt 0:00:01]} b5 {[%emt 0:00:01]} 0-1